bitfinex/quotes_BTCUSD_20250410
["timestamp","ask_amount","ask_price","bid_price","bid_amount"]
[1744320292154,0.06551033,79621.0,79620.0,0.012559]
[1744320292590,0.06551033,79621.0,79620.0,0.0185813]
[1744320293009,0.06551033,79621.0,79620.0,0.2697743]
[1744320295132,0.00942401,79632.0,79628.0,0.251167]
[1744320295279,0.12690758,79631.0,79628.0,0.251167]
[1744320295503,0.12690758,79631.0,79629.0,0.251163]
[1744320295702,0.12690758,79631.0,79629.0,0.0060223]
[1744320295903,0.12690758,79631.0,79629.0,0.2697433]
[1744320296112,0.21551033,79633.0,79629.0,0.2697433]
[1744320296434,0.12690758,79632.0,79629.0,0.2697433]
[1744320297033,0.21551033,79633.0,79632.0,0.012557]
[1744320297234,0.21551033,79633.0,79632.0,0.26959468]
[1744320297235,0.06551033,79633.0,79632.0,0.26959468]
[1744320299609,0.06551033,79636.0,79635.0,0.263702]
[1744320299830,0.06551033,79636.0,79635.0,0.26941925]
[1744320301283,0.06551033,79636.0,79635.0,0.88628683]
[1744320301284,3.3e-07,79636.0,79635.0,0.88628683]
[1744320301511,3.3e-07,79636.0,79635.0,0.89896395]
[1744320302513,7.3e-07,79640.0,79638.0,0.263692]
[1744320302757,7.3e-07,79640.0,79639.0,0.13946358]
[1744320302982,7.3e-07,79640.0,79639.0,0.14497444]
[1744320303945,4.256e-05,79640.0,79639.0,0.14497444]
[1744320304175,4.256e-05,79640.0,79639.0,0.01806686]
[1744320316420,4.256e-05,79640.0,79639.0,0.35806686]
[1744320321184,0.39063614,79640.0,79639.0,0.00551086]
[1744320321397,0.41500967,79640.0,79639.0,0.00551086]
[1744320321603,0.251158,79632.0,79625.0,0.263733]
[1744320321820,0.012558,79626.0,79620.0,0.012559]
[1744320322029,0.012558,79626.0,79622.0,0.251184]
[1744320322271,0.263733,79626.0,79623.0,0.34]
[1744320322509,0.25119,79621.0,79615.0,0.01256]
[1744320322750,0.012559,79623.0,79618.0,0.34]
[1744320323236,0.03509829,79622.0,79618.0,0.352559]
[1744320323441,0.03509829,79622.0,79619.0,0.012559]
[1744320323830,0.0233989,79621.0,79619.0,0.012559]
[1744320324099,0.0233989,79621.0,79620.0,0.34]
[1744320324323,0.25118,79624.0,79620.0,0.34]
[1744320324534,0.02339431,79623.0,79620.0,0.34]
[1744320324976,0.0350905,79622.0,79620.0,0.34]
[1744320325393,0.02339431,79621.0,79620.0,0.34]
[1744320326151,0.0350905,79621.0,79620.0,0.34]
[1744320326631,0.03507889,79621.0,79620.0,0.34]
[1744320326988,0.03507889,79621.0,79620.0,0.352559]
[1744320330240,0.03507889,79621.0,79620.0,0.352559]
[1744320331309,0.251177,79626.0,79620.0,0.352559]
[1744320331567,0.251177,79626.0,79621.0,0.263749]
[1744320332004,0.02336274,79625.0,79621.0,0.263749]
[1744320332420,0.01168273,79624.0,79622.0,0.00547983]
[1744320332624,0.03504547,79624.0,79622.0,0.00547983]
[1744320332773,0.02336274,79623.0,79622.0,0.00547983]
[1744320333187,0.03504547,79623.0,79622.0,0.00547983]
[1744320338692,0.03203745,79623.0,79622.0,0.00547983]
[1744320340314,0.03203745,79623.0,79622.0,0.01803883]
[1744320343813,0.01168273,79623.0,79622.0,0.01803883]
[1744320344026,0.0466,79628.0,79623.0,0.251183]
[1744320344225,0.310328,79628.0,79624.0,0.0056569]
[1744320344585,0.01169318,79627.0,79624.0,0.0056569]
[1744320345686,0.01169318,79626.0,79624.0,0.0056569]
[1744320346838,0.01169318,79626.0,79624.0,0.2568359]
[1744320347052,0.01169318,79625.0,79624.0,0.2568359]
[1744320351024,0.03512971,79625.0,79624.0,0.2568359]
[1744320352227,0.03512971,79625.0,79624.0,0.2693949]
[1744320353921,0.03512971,79625.0,79624.0,0.0056569]
[1744320354127,0.03512971,79625.0,79624.0,0.0182159]
[1744320365407,0.02512971,79625.0,79624.0,0.0182159]
[1744320373073,0.02512971,79625.0,79624.0,0.02072755]
[1744320374438,0.02512971,79625.0,79624.0,0.0182159]
[1744320374943,0.02512971,79625.0,79624.0,0.02072743]
[1744320378072,0.02512971,79625.0,79624.0,0.0182159]
[1744320378604,0.02512971,79625.0,79624.0,0.02072743]
[1744320379454,0.02512971,79625.0,79624.0,0.0182159]
[1744320380377,0.02512971,79625.0,79624.0,0.02072744]
[1744320380764,0.02512971,79625.0,79624.0,0.0182159]
[1744320423089,0.02493973,79625.0,79624.0,0.0182159]
[1744320423813,0.02493973,79625.0,79624.0,0.3582159]
[1744320424489,0.0015032,79625.0,79624.0,0.3582159]
[1744320426193,0.0485,79638.0,79637.0,0.012556]
[1744320426621,0.07197635,79638.0,79637.0,0.01808199]
[1744320427328,0.07197635,79638.0,79637.0,0.26922099]
[1744320435760,0.08370431,79638.0,79637.0,0.26922099]
[1744320438295,0.03520431,79638.0,79637.0,0.26922099]
[1744320449800,0.01172796,79638.0,79637.0,0.26922099]
[1744320451624,0.01172796,79638.0,79637.0,0.60922099]
[1744320451824,0.01172796,79638.0,79637.0,0.65642099]
[1744320452036,0.01172796,79638.0,79637.0,0.80598099]
[1744320452424,4.256e-05,79640.0,79639.0,0.603689]
[1744320452780,4.256e-05,79640.0,79639.0,0.60912877]
[1744320454217,4.256e-05,79640.0,79639.0,0.73603635]
[1744320455323,4.256e-05,79640.0,79639.0,0.78323635]
[1744320455943,4.256e-05,79640.0,79639.0,0.82094506]
[1744320456270,4.256e-05,79640.0,79639.0,0.86854506]
[1744320456428,4.256e-05,79640.0,79639.0,0.83083635]
[1744320456946,5.6e-07,79649.0,79648.0,0.263659]
[1744320457173,5.6e-07,79651.0,79650.0,0.603652]
[1744320457388,5.6e-07,79651.0,79650.0,0.73579343]
[1744320458160,0.08537419,79668.0,79650.0,0.73579343]
[1744320458161,5.6e-07,79658.0,79657.0,0.34]
[1744320458362,5.6e-07,79658.0,79657.0,0.72899388]
[1744320458570,7.5e-07,79670.0,79669.0,0.012551]
[1744320458782,0.08524411,79693.0,79679.0,0.01255]
[1744320458986,0.0494,79692.0,79679.0,0.0150597]
[1744320459198,0.08524411,79693.0,79679.0,0.61122748]
[1744320459485,0.08524411,79693.0,79679.0,0.73562536]
[1744320459701,0.08524411,79693.0,79686.0,0.603534]
[1744320459702,8e-07,79687.0,79686.0,0.603534]
[1744320459913,9.1e-07,79693.0,79692.0,0.603514]
[1744320460341,4.3e-05,79693.0,79692.0,0.603514]
[1744320460939,4.3e-05,79693.0,79692.0,0.73042158]
[1744320461346,4.8e-07,79702.0,79701.0,0.263483]
[1744320461553,4.253e-05,79702.0,79701.0,0.73039058]
[1744320462266,5.3e-07,79705.0,79704.0,0.603474]
[1744320462470,5.3e-07,79705.0,79704.0,0.75308016]
[1744320463436,8e-08,79707.0,79706.0,0.603468]
[1744320463853,0.0463,79722.0,79721.0,0.263417]
[1744320464338,0.0467,79724.0,79723.0,0.263411]
[1744320465357,0.002,79729.0,79727.0,0.263398]
[1744320465767,0.0463,79738.0,79737.0,0.250824]
[1744320466001,0.0467,79741.0,79740.0,0.263355]
[1744320466930,0.0463,79746.0,79741.0,0.01254]
[1744320467356,0.02042088,79742.0,79741.0,0.01254]
[1744320468037,8.8e-07,79742.0,79741.0,0.35504792]
[1744320468248,8.8e-07,79742.0,79741.0,0.35254]
[1744320470433,8.8e-07,79742.0,79734.0,0.263374]
[1744320470738,8.8e-07,79742.0,79739.0,0.263355]
[1744320470941,8.8e-07,79742.0,79740.0,0.263352]
[1744320471165,8.8e-07,79742.0,79739.0,0.01254]
[1744320471568,0.0464,79741.0,79739.0,0.263356]
[1744320471776,0.0464,79741.0,79739.0,0.01254]
[1744320472227,0.0464,79741.0,79739.0,0.263358]
[1744320474350,0.0464,79741.0,79740.0,0.01254]
[1744320476869,0.0464,79741.0,79739.0,0.263358]
[1744320477836,0.0464,79741.0,79738.0,0.26336]
[1744320479815,0.0464,79741.0,79737.0,0.263365]
[1744320480021,0.0464,79741.0,79738.0,0.26336]
[1744320480804,0.0464,79741.0,79739.0,0.01254]
[1744320480977,0.0464,79741.0,79739.0,0.263356]
[1744320481649,0.0464,79741.0,79738.0,0.26336]
[1744320482116,0.0464,79741.0,79739.0,0.250816]
[1744320483482,0.0463,79741.0,79739.0,0.250816]
[1744320485361,0.0463,79741.0,79739.0,0.263356]
[1744320486110,0.01164159,79740.0,79739.0,0.263356]
[1744320499231,0.03510618,79740.0,79739.0,0.263356]
[1744320503284,0.01164159,79740.0,79739.0,0.263356]
[1744320504290,0.03510696,79740.0,79739.0,0.263356]
[1744320510559,0.01164159,79740.0,79739.0,0.263356]
[1744320511968,0.03510505,79740.0,79739.0,0.263356]
[1744320513867,8.8e-07,79742.0,79741.0,0.263352]
[1744320514341,0.02345597,79742.0,79741.0,0.263352]
[1744320514748,0.03518347,79742.0,79741.0,0.263352]
[1744320516949,0.01172838,79742.0,79741.0,0.263352]
[1744320518021,0.03517929,79742.0,79741.0,0.263352]
[1744320522460,0.02345179,79742.0,79741.0,0.263352]
[1744320522946,8.8e-07,79742.0,79741.0,0.263352]
[1744320528929,0.02346598,79742.0,79741.0,0.263352]
[1744320529331,0.03519852,79742.0,79741.0,0.263352]
[1744320532672,0.01173342,79742.0,79741.0,0.263352]
[1744320532880,8.8e-07,79742.0,79741.0,0.263352]
[1744320539789,0.02344988,79742.0,79741.0,0.263352]
[1744320540636,8.8e-07,79742.0,79741.0,0.263352]
[1744320558455,8.8e-07,79742.0,79741.0,0.603352]
[1744320572442,0.00010088,79742.0,79741.0,0.603352]
[1744320574070,0.00010088,79742.0,79741.0,0.73025958]
[1744320578764,0.00010088,79742.0,79741.0,0.77565958]
[1744320578963,0.00010088,79742.0,79741.0,0.43565958]
[1744320579539,0.00010088,79742.0,79741.0,0.77565958]
[1744320580491,0.00010088,79742.0,79741.0,0.73025958]
[1744320582607,0.00010088,79742.0,79741.0,0.39025958]
[1744320582739,0.00010088,79742.0,79741.0,0.87909958]
[1744320603300,8.8e-07,79742.0,79741.0,0.87909958]
[1744320603520,8.8e-07,79742.0,79741.0,0.91694434]
[1744320604709,8.8e-07,79742.0,79741.0,0.94042368]
[1744320610052,8.8e-07,79759.0,79758.0,0.603295]
[1744320610286,4.294e-05,79759.0,79758.0,0.87888258]
[1744320610521,4.294e-05,79759.0,79758.0,1.35773629]
[1744320612831,4.294e-05,79759.0,79758.0,1.31996192]
[1744320613065,4.294e-05,79759.0,79758.0,1.35769252]
[1744320613504,4.294e-05,79759.0,79758.0,2.60996192]
[1744320613694,4.294e-05,79759.0,79758.0,2.61945969]
[1744320616654,3.4e-07,79774.0,79770.0,0.34]
[1744320616862,4.237e-05,79774.0,79773.0,0.352535]
[1744320617072,4.237e-05,79774.0,79773.0,0.62812258]
[1744320617429,4.237e-05,79774.0,79773.0,0.65160192]
[1744320619468,4.237e-05,79774.0,79773.0,0.66614277]
[1744320621465,4.237e-05,79774.0,79773.0,0.64266343]
[1744320621965,4.237e-05,79774.0,79773.0,1.11026343]
[1744320624714,0.000168,79788.0,79787.0,0.012533]
[1744320624930,0.00021002,79788.0,79787.0,0.63050681]
[1744320625146,0.00021002,79788.0,79787.0,0.62800058]
[1744320628494,0.04881002,79788.0,79787.0,0.62800058]
[1744320629299,0.04881002,79788.0,79787.0,0.64070949]
[1744320633003,0.00021002,79788.0,79787.0,0.64070949]
[1744320633387,1.002e-05,79788.0,79787.0,0.64070949]
[1744320653314,1.002e-05,79788.0,79787.0,0.6785195]
[1744320660307,2e-08,79789.0,79788.0,0.603197]
[1744320660512,2e-08,79789.0,79788.0,0.73010458]
[1744320660741,2e-08,79789.0,79788.0,0.76791459]
[1744320663997,2e-08,79789.0,79788.0,1.18551459]
[1744320664414,2e-08,79789.0,79788.0,1.20505544]
[1744320675259,2e-08,79789.0,79788.0,1.19051459]
[1744320676132,2e-08,79789.0,79788.0,1.20505544]
[1744320676353,2e-08,79789.0,79788.0,1.25505544]
[1744320676568,2e-08,79789.0,79788.0,1.2784643]
[1744320678795,2e-08,79789.0,79788.0,1.26392345]
[1744320680730,2e-08,79789.0,79788.0,1.2784643]
[1744320686884,0.04940002,79789.0,79788.0,0.32441587]
[1744320687093,0.04940002,79789.0,79788.0,0.28660586]
[1744320687305,0.04940002,79789.0,79788.0,0.263197]
[1744320687522,0.04940002,79789.0,79788.0,0.603197]
[1744320687973,0.04940002,79789.0,79788.0,0.263197]
[1744320688399,0.04940002,79789.0,79788.0,0.39010458]
[1744320688905,0.04940002,79789.0,79788.0,0.87838458]
[1744320699620,0.04940002,79789.0,79788.0,0.73010458]
[1744320699826,0.04940002,79789.0,79788.0,0.87838458]
[1744320702481,0.04940002,79789.0,79788.0,0.751477]
[1744320704825,0.09810002,79789.0,79788.0,0.603197]
[1744320704988,0.108333,79788.0,79787.0,0.00012609]
[1744320705163,0.358997,79788.0,79787.0,0.00012609]
[1744320707244,0.012534,79782.0,79777.0,0.250696]
[1744320707445,0.0958,79780.0,79778.0,0.34]
[1744320707771,0.0958,79783.0,79779.0,0.250692]
[1744320708101,0.263211,79784.0,79779.0,0.250692]
[1744320708303,0.0958,79783.0,79779.0,0.250692]
[1744320708506,0.0958,79780.0,79776.0,0.603234]
[1744320708730,0.0958,79781.0,79777.0,0.012534]
[1744320708954,0.0958,79781.0,79779.0,0.250691]
[1744320709158,0.0958,79780.0,79779.0,0.590691]
[1744320709590,0.0958,79780.0,79779.0,0.34]
[1744320713953,0.0958,79780.0,79779.0,0.352534]
[1744320714360,0.0958,79780.0,79779.0,0.34]
[1744320715125,0.0958,79780.0,79779.0,0.352534]
[1744320718003,0.0958,79780.0,79779.0,0.012534]
[1744320732437,0.263187,79791.0,79779.0,0.012534]
[1744320732438,0.0455,79787.0,79786.0,0.012533]
[1744320734140,2e-08,79789.0,79788.0,0.012533]
[1744320735797,2e-08,79789.0,79788.0,0.03598173]
[1744320736052,2e-08,79789.0,79788.0,0.65112931]
[1744320736748,2e-08,79789.0,79788.0,0.62768058]
[1744320739838,2e-08,79789.0,79788.0,0.65108662]
[1744320740486,2e-08,79789.0,79788.0,0.62768058]
[1744320765799,2e-08,79789.0,79788.0,0.66545173]
[1744320776231,2e-08,79789.0,79788.0,0.68499258]
[1744320778412,2e-08,79789.0,79788.0,1.10259258]
[1744320780415,2e-08,79801.0,79800.0,0.803157]
[1744320780577,2e-08,79801.0,79800.0,0.96783573]
[1744320781589,2e-08,79801.0,79800.0,0.96796132]
[1744320782902,2e-08,79801.0,79800.0,0.99139448]
[1744320783465,9.2e-07,79805.0,79804.0,0.603144]
[1744320783694,9.2e-07,79806.0,79805.0,0.35253]
[1744320783905,9.2e-07,79806.0,79805.0,0.47943758]
[1744320784265,9.2e-07,79806.0,79805.0,0.50287074]
[1744320785347,9.2e-07,79806.0,79805.0,0.55007916]
[1744320786107,0.0958679,79821.0,79813.0,0.263114]
[1744320786108,3.2e-07,79814.0,79813.0,0.263114]
[1744320786308,3.2e-07,79814.0,79813.0,0.73002158]
[1744320786733,3.2e-07,79814.0,79813.0,0.90141474]
[1744320792404,3.2e-07,79814.0,79813.0,0.95595559]
[1744320792767,3.2e-07,79814.0,79813.0,0.9676472]
[1744320796091,3.2e-07,79814.0,79813.0,1.3852472]
[1744320798376,0.0491679,79836.0,79824.0,0.703078]
[1744320798581,0.0491679,79836.0,79835.0,0.603041]
[1744320798800,0.0491679,79836.0,79835.0,0.72994858]
[1744320799003,0.0491679,79836.0,79835.0,0.75338174]
[1744320799675,0.04958852,79836.0,79835.0,0.76507335]
[1744320801951,0.04958852,79836.0,79835.0,0.77774568]
[1744320802663,0.04958852,79836.0,79835.0,0.81774568]
[1744320802875,0.04958852,79836.0,79835.0,0.80605407]
[1744320805127,0.04958852,79836.0,79835.0,0.78262091]
[1744320807035,0.09648852,79836.0,79835.0,0.303041]
[1744320809799,0.09648852,79836.0,79829.0,0.012526]
[1744320809800,0.263041,79835.0,79829.0,0.012526]
[1744320810031,0.263041,79835.0,79827.0,0.263066]
[1744320810032,0.095,79831.0,79827.0,0.263066]
[1744320810492,0.095,79830.0,79829.0,0.250534]
[1744320812505,0.095,79830.0,79829.0,0.290534]
[1744320813282,0.0949,79830.0,79829.0,0.290534]
[1744320815656,0.0949,79830.0,79829.0,0.04]
[1744320849855,0.0469,79830.0,79829.0,0.052526]
[1744320852087,0.0469,79830.0,79829.0,0.04]
[1744320863504,0.07036665,79830.0,79829.0,0.04]
[1744320864685,0.08289265,79830.0,79829.0,0.04]
[1744320869084,0.07036665,79830.0,79829.0,0.04]
[1744320877564,0.08210198,79830.0,79829.0,0.04]
[1744320880069,0.07036665,79830.0,79829.0,0.04]
[1744320880181,0.02346665,79830.0,79829.0,0.04]
[1744320883193,0.07016665,79830.0,79829.0,0.04]
[1744320883358,0.11516665,79830.0,79829.0,0.04]
[1744320883833,0.25460023,79830.0,79829.0,0.04]
[1744320898622,0.50460023,79830.0,79829.0,0.04]
[1744320900609,0.50446082,79830.0,79829.0,0.04]
[1744320901703,0.25446082,79830.0,79829.0,0.04]
[1744320902869,0.50446082,79830.0,79829.0,0.04]
[1744320913325,0.58011034,79830.0,79829.0,0.04]
[1744320913541,0.51900167,79830.0,79829.0,1e-06]
[1744320915115,0.85900167,79830.0,79829.0,1e-06]
[1744320915719,1.41500167,79830.0,79829.0,1e-06]
[1744320915931,1.58078834,79830.0,79829.0,1e-06]
[1744320916476,0.263111,79814.0,79813.0,0.04]
[1744320916718,1.06511943,79814.0,79813.0,0.04]
[1744320917138,1.08844667,79814.0,79813.0,0.04]
[1744320917339,1.08844667,79814.0,79813.0,1e-06]
[1744320917548,1.33844667,79814.0,79813.0,1e-06]
[1744320918014,1.34798901,79814.0,79813.0,1e-06]
[1744320920745,1.47532587,79814.0,79813.0,1e-06]
[1744320921982,1.48700087,79814.0,79813.0,1e-06]
[1744320923417,1.82700087,79814.0,79813.0,1e-06]
[1744320924538,1.69966401,79814.0,79813.0,1e-06]
[1744320933812,1.68798901,79814.0,79813.0,1e-06]
[1744320935130,1.09198816,79814.0,79813.0,1e-06]
[1744320935336,0.27332724,79814.0,79813.0,0.250586]
[1744320935672,0.02332724,79814.0,79813.0,0.49828616]
[1744320935880,0.01787202,79818.0,79817.0,0.339201]
[1744320936315,0.01787202,79818.0,79817.0,0.35279648]
[1744320936809,0.01787202,79818.0,79817.0,0.47970406]
[1744320937039,0.08529106,79833.0,79832.0,0.0528]
[1744320937493,0.08529106,79833.0,79832.0,0.06627819]
[1744320937734,0.08529106,79833.0,79832.0,0.07880419]
[1744320942334,0.00058852,79836.0,79832.0,0.07880419]
[1744320943656,0.25110152,79836.0,79832.0,0.06627819]
[1744320943854,0.26362652,79836.0,79832.0,0.06627819]
[1744320947159,0.263044,79835.0,79832.0,0.06627819]
[1744320950463,0.263044,79835.0,79832.0,0.05037819]
[1744320952038,0.463044,79835.0,79832.0,0.05037819]
[1744320952934,0.463044,79835.0,79834.0,0.250519]
[1744320952935,0.2,79835.0,79834.0,0.250519]
[1744320953159,0.2,79835.0,79834.0,0.263044]
[1744320953381,0.2,79835.0,79834.0,0.27623025]
[1744320991584,0.2,79835.0,79834.0,0.31623125]
[1744321012573,0.43133258,79835.0,79834.0,0.05318725]
[1744321012795,0.44587343,79835.0,79834.0,0.05318725]
[1744321013018,0.44587343,79835.0,79834.0,0.040001]
[1744321017277,0.43133258,79835.0,79834.0,0.040001]
[1744321018968,0.2919,79835.0,79834.0,0.040001]
[1744321019431,0.2919,79835.0,79834.0,0.05076123]
[1744321019655,0.2458,79835.0,79834.0,0.05076123]
[1744321019884,0.2,79835.0,79834.0,0.05076123]
[1744321021780,0.2,79835.0,79834.0,0.06328623]
[1744321047738,0.2001,79835.0,79834.0,0.06328623]
[1744321059225,0.44457643,79835.0,79834.0,0.05076123]
[1744321059429,0.43703258,79835.0,79834.0,0.05076123]
[1744321059632,0.45157343,79835.0,79834.0,0.040001]
[1744321061214,0.46110155,79835.0,79834.0,0.040001]
[1744321066687,0.71110155,79835.0,79834.0,0.040001]
[1744321067701,0.71110155,79835.0,79813.0,1e-06]
[1744321067702,0.0958,79815.0,79813.0,1e-06]
[1744321068224,0.13943658,79814.0,79813.0,1e-06]
[1744321075017,0.33943658,79814.0,79813.0,1e-06]
[1744321079881,0.38443658,79814.0,79813.0,1e-06]
[1744321080357,0.38443658,79814.0,79813.0,0.020001]
[1744321082277,0.3938908,79814.0,79813.0,0.020001]
[1744321082722,0.79643165,79814.0,79813.0,0.020001]
[1744321084808,1.04643165,79814.0,79813.0,0.020001]
[1744321085048,1.1732073,79814.0,79813.0,0.020001]
[1744321085565,1.04643165,79814.0,79813.0,0.020001]
[1744321085804,0.37069485,79801.0,79800.0,0.0001]
[1744321086025,0.64472243,79801.0,79800.0,0.0001]
[1744321086688,0.89472243,79801.0,79800.0,0.0001]
[1744321087411,0.89472243,79801.0,79800.0,0.00022559]
[1744321087652,0.89472243,79801.0,79797.0,3.9e-07]
[1744321087653,0.263163,79798.0,79797.0,3.9e-07]
[1744321087886,0.48307058,79798.0,79797.0,0.00012604]
[1744321088358,1.24217058,79798.0,79797.0,4e-08]
[1744321088794,0.34,79786.0,79761.0,0.002]
[1744321089044,0.27775785,79782.0,79781.0,0.00046174]
[1744321089285,0.40466543,79782.0,79781.0,0.00046174]
[1744321089494,0.44966543,79782.0,79781.0,7.4e-07]
[1744321089714,0.49766543,79782.0,79781.0,7.4e-07]
[1744321090608,0.74766543,79782.0,79781.0,7.4e-07]
[1744321091309,0.603232,79777.0,79776.0,7.4e-07]
[1744321091534,0.79408043,79777.0,79776.0,0.00012661]
[1744321091759,0.79408043,79777.0,79768.0,0.000336]
[1744321091760,0.603259,79769.0,79768.0,0.000336]
[1744321091984,0.263299,79757.0,79755.0,0.0003358]
[1744321092174,0.45044743,79757.0,79756.0,0.00012689]
[1744321093224,0.86954743,79757.0,79756.0,0.00012689]
[1744321093440,0.41647885,79756.0,79755.0,6.9e-07]
[1744321093671,0.54338643,79756.0,79755.0,8.5e-07]
[1744321094703,0.61786885,79748.0,79747.0,8e-07]
[1744321094910,1.31103643,79748.0,79747.0,0.00012715]
[1744321096532,1.56103643,79748.0,79747.0,0.00012715]
[1744321099124,1.56103643,79748.0,79747.0,1.5e-07]
[1744321099360,0.653345,79743.0,79742.0,9.5e-07]
[1744321099531,0.79479343,79743.0,79742.0,0.00012742]
[1744321100087,0.79479343,79743.0,79742.0,2.742e-05]
[1744321101654,1.04479343,79743.0,79742.0,2.742e-05]
[1744321102850,0.99479343,79743.0,79742.0,2.742e-05]
[1744321103082,0.25,79743.0,79742.0,2.742e-05]
[1744321103317,0.25,79743.0,79742.0,0.01256742]
[1744321103546,0.25,79743.0,79742.0,0.00723644]
[1744321103786,0.263345,79744.0,79742.0,0.00723644]
[1744321103990,0.250793,79747.0,79742.0,2.742e-05]
[1744321104202,0.263332,79747.0,79743.0,0.00705833]
[1744321104846,0.012539,79746.0,79743.0,0.00705833]
[1744321105062,0.263338,79745.0,79743.0,0.00705833]
[1744321105271,0.012539,79745.0,79743.0,0.00705833]
[1744321105495,0.012539,79746.0,79743.0,0.00705833]
[1744321105707,0.012539,79747.0,79743.0,0.00705833]
[1744321107164,0.012539,79747.0,79743.0,0.01705843]
[1744321107384,0.263342,79744.0,79743.0,0.01705843]
[1744321107583,0.39024958,79744.0,79743.0,0.0100001]
[1744321108576,0.263342,79744.0,79743.0,0.0100001]
[1744321111356,0.39024958,79744.0,79743.0,0.0100001]
[1744321113583,0.263342,79744.0,79743.0,0.0100001]
[1744321116011,0.463342,79744.0,79743.0,0.0100001]
[1744321120831,0.93024958,79744.0,79743.0,0.0100001]
[1744321121953,0.01254,79743.0,79742.0,2.742e-05]
[1744321122174,0.13944758,79743.0,79742.0,2.742e-05]
[1744321122697,0.72024843,79743.0,79742.0,2.742e-05]
[1744321123740,0.97024843,79743.0,79742.0,2.742e-05]
[1744321124226,0.97024843,79743.0,79736.0,0.02]
[1744321124227,0.02708185,79737.0,79736.0,4.2e-07]
[1744321124455,0.40481343,79737.0,79736.0,4.244e-05]
[1744321127384,0.82391343,79737.0,79736.0,4.244e-05]
[1744321129185,1.02391343,79737.0,79736.0,4.244e-05]
[1744321140625,0.463365,79737.0,79736.0,4.244e-05]
[1744321140825,0.2,79737.0,79736.0,0.01258344]
[1744321141056,0.2,79737.0,79736.0,0.06545334]
[1744321141673,0.2,79737.0,79736.0,0.19236092]
[1744321144513,0.1032,79737.0,79736.0,0.63236092]
[1744321144859,0.0082,79737.0,79736.0,0.59806092]
[1744321147478,0.0082,79737.0,79736.0,0.62140707]
[1744321148980,1e-06,79737.0,79736.0,0.62640707]
[1744321149207,1e-06,79737.0,79736.0,0.64094792]
[1744321149471,1e-06,79737.0,79736.0,2.00762892]
[1744321150868,1e-06,79737.0,79736.0,1.05854792]
[1744321151103,2e-07,79769.0,79768.0,0.263263]
[1744321151307,0.06475579,79799.0,79796.0,0.012531]
[1744321151519,0.06475579,79799.0,79796.0,0.26317]
[1744321151721,0.06475579,79799.0,79798.0,0.263163]
[1744321151930,0.06475579,79799.0,79798.0,0.39007058]
[1744321152198,0.06475579,79799.0,79798.0,0.39654389]
[1744321155778,0.0493,79811.0,79810.0,0.250595]
[1744321156474,0.0493,79811.0,79810.0,0.26959731]
[1744321158810,0.0493,79811.0,79810.0,0.36959631]
[1744321162233,0.0493,79811.0,79810.0,0.35706731]
[1744321162603,0.0493,79811.0,79810.0,0.36959631]
[1744321175593,0.0493,79811.0,79810.0,0.39292191]
[1744321175995,0.0493,79811.0,79810.0,0.3864486]
[1744321177289,0.04804218,79811.0,79810.0,0.3864486]
[1744321180984,0.04804218,79811.0,79810.0,0.363123]
[1744321183004,0.04804218,79811.0,79810.0,0.263124]
[1744321194263,0.04804218,79811.0,79810.0,0.250595]
[1744321195034,0.04804218,79811.0,79808.0,0.26313]
[1744321195915,0.04804218,79811.0,79809.0,0.250596]
[1744321196578,0.04804218,79811.0,79808.0,0.26313]
[1744321197188,0.04772321,79811.0,79808.0,0.26313]
[1744321198162,0.04772321,79811.0,79803.0,0.01253]
[1744321198163,0.047,79803.0,79776.0,1.38956]
[1744321198358,0.012533,79789.0,79783.0,0.012533]
[1744321198563,0.047,79789.0,79785.0,0.263204]
[1744321199419,0.047,79789.0,79786.0,0.2632]
[1744321199616,0.047,79789.0,79786.0,0.012533]
[1744321200262,0.0452,79788.0,79786.0,0.263201]
[1744321200483,0.01253,79807.0,79801.0,0.012531]
[1744321200704,0.263139,79806.0,79801.0,0.012531]
[1744321200917,0.0922,79805.0,79804.0,0.01253]
[1744321201137,0.0001,79811.0,79810.0,0.263124]
[1744321227294,0.0001682,79817.0,79816.0,0.250576]
[1744321227441,0.0002945,79817.0,79816.0,0.250576]
[1744321229124,0.0002945,79817.0,79815.0,0.012528]
[1744321229556,0.0002945,79817.0,79815.0,0.263105]
[1744321231594,0.0002945,79817.0,79816.0,0.01091585]
[1744321234971,0.0002945,79817.0,79816.0,0.02344385]
[1744321239233,0.0002945,79817.0,79816.0,0.01091585]
[1744321239643,0.0002945,79817.0,79815.0,0.263105]
[1744321244209,0.0002945,79817.0,79815.0,0.012528]
[1744321244548,0.0002945,79817.0,79816.0,0.01086054]
[1744321244749,0.0002945,79817.0,79815.0,0.012528]
[1744321244948,0.0002945,79817.0,79816.0,0.01086054]
[1744321245131,0.0002945,79817.0,79815.0,0.012528]
[1744321245337,0.0002945,79817.0,79816.0,0.01086054]
[1744321245619,0.0002945,79817.0,79815.0,0.012528]
[1744321246016,0.0002945,79817.0,79816.0,0.01086054]
[1744321246513,0.0002945,79817.0,79815.0,0.012528]
[1744321246720,0.0002945,79817.0,79816.0,0.01086054]
[1744321246959,0.0002945,79817.0,79815.0,0.012528]
[1744321247167,0.0002945,79817.0,79816.0,0.01086054]
[1744321247372,0.0002945,79817.0,79815.0,0.012528]
[1744321247790,0.0002945,79817.0,79816.0,0.01086054]
[1744321248167,0.0002945,79817.0,79815.0,0.012528]
[1744321248336,0.0002945,79817.0,79816.0,0.01086054]
[1744321248545,0.0002945,79817.0,79815.0,0.012528]
[1744321248744,0.0002945,79817.0,79816.0,0.01086054]
[1744321249063,0.0002945,79817.0,79815.0,0.012528]
[1744321249387,0.0002945,79817.0,79816.0,0.01086054]
[1744321249806,0.0002945,79817.0,79816.0,0.26143654]
[1744321251226,0.0002945,79817.0,79816.0,0.27396454]
[1744321255112,0.0002945,79817.0,79816.0,0.40087212]
[1744321255734,0.0002945,79817.0,79816.0,0.74087212]
[1744321257081,0.0002945,79817.0,79816.0,0.88771212]
[1744321269368,0.0456945,79817.0,79816.0,0.76080454]
[1744321272078,0.0002945,79817.0,79816.0,0.76080454]
[1744321274943,0.1046225,79817.0,79816.0,0.01086054]
[1744321275170,0.250623,79801.0,79800.0,0.0001]
[1744321275381,0.250623,79801.0,79770.0,0.1]
[1744321275382,0.012532,79793.0,79759.0,0.14672]
[1744321275597,0.27776385,79780.0,79779.0,6e-07]
[1744321275849,0.02707685,79767.0,79766.0,0.16364907]
[1744321276051,0.20068443,79767.0,79766.0,0.16364907]
[1744321276495,0.24578443,79767.0,79766.0,0.16364907]
[1744321276706,0.84526352,79767.0,79766.0,0.16364907]